[Event "Titled Tuesday Blitz May 24 Early 2022"]
[White "Samaganova, Aleksandra"]
[Black "Shtyka, Sergey"]
[WhiteFideId "13800221"]
[BlackFideId "4138465"]
[WhiteElo "1889"]
[BlackElo "2014"]
[Result "0-1"]
[Round "04"]
[TimeControl "180+1"]
[Date "2022.05.25"]
[WhiteClock "0:00:04"]
[BlackClock "0:00:36"]

1. c4 {[%clk 0:03:00]}  c5 {[%clk 0:03:00]} 2. Nc3 {[%clk 0:03:00]}  Nc6 {[%clk 0:03:00]} 3. g3 {[%clk 0:03:00]}  g6 {[%clk 0:03:01]} 4. Bg2 {[%clk 0:03:00]}  Bg7 {[%clk 0:03:01]} 5. e3 {[%clk 0:03:00]}  e5 {[%clk 0:02:58]} 6. Nge2 {[%clk 0:03:00]}  Nge7 {[%clk 0:02:58]} 7. O-O {[%clk 0:02:59]}  O-O {[%clk 0:02:58]} 8. a3 {[%clk 0:02:59]}  d6 {[%clk 0:02:58]} 9. Rb1 {[%clk 0:02:59]}  a5 {[%clk 0:02:58]} 10. Nd5 {[%clk 0:02:57]}  Nxd5 {[%clk 0:02:55]} 11. cxd5 {[%clk 0:02:58]}  Ne7 {[%clk 0:02:53]} 12. b4 {[%clk 0:02:57]}  axb4 {[%clk 0:02:49]} 13. axb4 {[%clk 0:02:57]}  b6 {[%clk 0:02:34]} 14. bxc5 {[%clk 0:02:57]}  bxc5 {[%clk 0:02:34]} 15. d4 {[%clk 0:02:56]}  exd4 {[%clk 0:02:12]} 16. exd4 {[%clk 0:02:55]}  Bf5 {[%clk 0:02:11]} 17. Rb7 {[%clk 0:02:51]}  c4 {[%clk 0:01:57]} 18. Bg5 {[%clk 0:02:42]}  Re8 {[%clk 0:01:57]} 19. Qc1 {[%clk 0:02:31]}  Bd3 {[%clk 0:01:54]} 20. Re1 {[%clk 0:02:27]}  Rb8 {[%clk 0:01:48]} 21. Rxb8 {[%clk 0:01:43]}  Qxb8 {[%clk 0:01:47]} 22. Nf4 {[%clk 0:01:38]}  Nf5 {[%clk 0:01:43]} 23. Rxe8+ {[%clk 0:01:04]}  Qxe8 {[%clk 0:01:42]} 24. Nxd3 {[%clk 0:00:56]}  cxd3 {[%clk 0:01:41]} 25. Bf1 {[%clk 0:00:49]}  Nxd4 {[%clk 0:01:26]} 26. Bxd3 {[%clk 0:00:44]}  Nf3+ {[%clk 0:01:18]} 27. Kh1 {[%clk 0:00:32]}  Bd4 {[%clk 0:01:15]} 28. Be3 {[%clk 0:00:28]}  Bxe3 {[%clk 0:01:08]} 29. Qxe3 {[%clk 0:00:28]}  Qxe3 {[%clk 0:01:07]} 30. fxe3 {[%clk 0:00:29]}  Kg7 {[%clk 0:01:07]} 31. Be2 {[%clk 0:00:25]}  Nd2 {[%clk 0:01:01]} 32. Bd3 {[%clk 0:00:20]}  Kf6 {[%clk 0:01:00]} 33. Kg2 {[%clk 0:00:19]}  Ke5 {[%clk 0:01:00]} 34. Kf2 {[%clk 0:00:12]}  Kxd5 {[%clk 0:00:58]} 35. Ke2 {[%clk 0:00:12]}  Nb3 {[%clk 0:00:49]} 36. Bb1 {[%clk 0:00:09]}  Ke5 {[%clk 0:00:43]} 37. Kd3 {[%clk 0:00:05]}  Nc5+ {[%clk 0:00:42]} 38. Ke2 {[%clk 0:00:04]}  f5 {[%clk 0:00:41]} 39. Kf3 {[%clk 0:00:03]}  h6 {[%clk 0:00:39]} 40. Ba2 {[%clk 0:00:03]}  g5 {[%clk 0:00:39]} 41. h3 {[%clk 0:00:03]}  Ne4 {[%clk 0:00:38]} 42. Bf7 {[%clk 0:00:04]}  g4+ {[%clk 0:00:35]} 43. hxg4 {[%clk 0:00:04]}  Ng5+ {[%clk 0:00:36]} 44. Kg2 {[%clk 0:00:04]}  Nxf7 {[%clk 0:00:36]} 0-1


[Site "https://www.chess.com"]

[Event "Titled Tuesday Blitz May 24 Early 2022"]
[White "Samunenkov, Ihor"]
[Black "Cervantes Landeiro, Thalia"]
[WhiteFideId "14187086"]
[BlackFideId "3520498"]
[WhiteElo "2409"]
[BlackElo "2021"]
[Result "1-0"]
[Round "04"]
[TimeControl "180+1"]
[Date "2022.05.25"]
[WhiteClock "0:00:08"]
[BlackClock "0:00:22"]

1. e4 {[%clk 0:03:00]}  c5 {[%clk 0:02:59]} 2. Nf3 {[%clk 0:03:00]}  d6 {[%clk 0:02:59]} 3. d4 {[%clk 0:03:00]}  cxd4 {[%clk 0:02:59]} 4. Nxd4 {[%clk 0:03:01]}  Nf6 {[%clk 0:02:58]} 5. Nc3 {[%clk 0:03:02]}  a6 {[%clk 0:02:59]} 6. h3 {[%clk 0:03:01]}  e5 {[%clk 0:02:58]} 7. Nde2 {[%clk 0:03:02]}  h5 {[%clk 0:02:59]} 8. g3 {[%clk 0:03:02]}  Be6 {[%clk 0:02:59]} 9. Bg2 {[%clk 0:03:02]}  Be7 {[%clk 0:02:59]} 10. a4 {[%clk 0:03:02]}  Nc6 {[%clk 0:02:57]} 11. O-O {[%clk 0:03:01]}  Rc8 {[%clk 0:02:54]} 12. b3 {[%clk 0:03:00]}  Qc7 {[%clk 0:02:53]} 13. f4 {[%clk 0:02:59]}  Nd4 {[%clk 0:02:46]} 14. f5 {[%clk 0:02:12]}  Bd7 {[%clk 0:02:41]} 15. Bb2 {[%clk 0:01:41]}  Qc5 {[%clk 0:02:22]} 16. Kh1 {[%clk 0:01:11]}  Ng4 {[%clk 0:02:19]} 17. Qd3 {[%clk 0:00:43]}  h4 {[%clk 0:01:51]} 18. Nxd4 {[%clk 0:00:28]}  exd4 {[%clk 0:01:49]} 19. Nd5 {[%clk 0:00:28]}  Ne5 {[%clk 0:01:28]} 20. Qxd4 {[%clk 0:00:23]}  hxg3 {[%clk 0:01:09]} 21. Qxc5 {[%clk 0:00:18]}  Rxc5 {[%clk 0:01:10]} 22. c4 {[%clk 0:00:18]}  Nd3 {[%clk 0:01:09]} 23. Bxg7 {[%clk 0:00:15]}  Rh7 {[%clk 0:01:01]} 24. Bd4 {[%clk 0:00:10]}  Rc8 {[%clk 0:00:56]} 25. Rad1 {[%clk 0:00:10]}  Ne5 {[%clk 0:00:52]} 26. Nb6 {[%clk 0:00:07]}  Rd8 {[%clk 0:00:49]} 27. Nd5 {[%clk 0:00:06]}  Bc6 {[%clk 0:00:48]} 28. f6 {[%clk 0:00:06]}  Bf8 {[%clk 0:00:43]} 29. Bxe5 {[%clk 0:00:06]}  Bxd5 {[%clk 0:00:39]} 30. Rxd5 {[%clk 0:00:03]}  dxe5 {[%clk 0:00:39]} 31. Rxe5+ {[%clk 0:00:04]}  Kd7 {[%clk 0:00:39]} 32. Rd1+ {[%clk 0:00:04]}  Kc7 {[%clk 0:00:34]} 33. Rxd8 {[%clk 0:00:04]}  Kxd8 {[%clk 0:00:35]} 34. Rg5 {[%clk 0:00:04]}  Bd6 {[%clk 0:00:34]} 35. e5 {[%clk 0:00:05]}  Bc7 {[%clk 0:00:33]} 36. e6 {[%clk 0:00:03]}  Rh8 {[%clk 0:00:16]} 37. e7+ {[%clk 0:00:03]}  Kd7 {[%clk 0:00:16]} 38. Bxb7 {[%clk 0:00:03]}  Ke6 {[%clk 0:00:15]} 39. Rc5 {[%clk 0:00:01]}  Bd6 {[%clk 0:00:15]} 40. Rc8 {[%clk 0:00:02]}  g2+ {[%clk 0:00:13]} 41. Kxg2 {[%clk 0:00:02]}  Rh5 {[%clk 0:00:10]} 42. e8=Q+ {[%clk 0:00:02]}  Kxf6 {[%clk 0:00:11]} 43. Qe4 {[%clk 0:00:02]}  Rg5+ {[%clk 0:00:11]} 44. Kf1 {[%clk 0:00:03]}  Be5 {[%clk 0:00:11]} 45. Qf3+ {[%clk 0:00:03]}  Rf5 {[%clk 0:00:12]} 46. Qxf5+ {[%clk 0:00:04]}  Kxf5 {[%clk 0:00:13]} 47. Bf3 {[%clk 0:00:05]}  f6 {[%clk 0:00:14]} 48. Ke2 {[%clk 0:00:05]}  Kf4 {[%clk 0:00:14]} 49. Rc6 {[%clk 0:00:06]}  f5 {[%clk 0:00:14]} 50. Rxa6 {[%clk 0:00:07]}  Bd4 {[%clk 0:00:15]} 51. Rd6 {[%clk 0:00:07]}  Kg3 {[%clk 0:00:16]} 52. Rxd4 {[%clk 0:00:07]}  f4 {[%clk 0:00:16]} 53. a5 {[%clk 0:00:07]}  Kh2 {[%clk 0:00:17]} 54. Rxf4 {[%clk 0:00:08]}  Kg1 {[%clk 0:00:18]} 55. Rf8 {[%clk 0:00:08]}  Kh2 {[%clk 0:00:19]} 56. h4 {[%clk 0:00:09]}  Kg3 {[%clk 0:00:20]} 57. h5 {[%clk 0:00:09]}  Kh3 {[%clk 0:00:21]} 58. h6 {[%clk 0:00:10]}  Kh2 {[%clk 0:00:22]} 59. h7 {[%clk 0:00:10]}  Kg1 {[%clk 0:00:22]} 60. Rg8+ {[%clk 0:00:10]}  Kh2 {[%clk 0:00:22]} 61. h8=R# {[%clk 0:00:08]} 1-0


[Site "https://www.chess.com"]

[Event "Titled Tuesday Blitz May 24 Early 2022"]
[White "Schekachikhin, Maksim"]
[Black "Seo, Jung Min"]
[WhiteFideId "24177830"]
[BlackFideId "1734687"]
[WhiteElo "2239"]
[BlackElo "2401"]
[Result "0-1"]
[Round "04"]
[TimeControl "180+1"]
[Date "2022.05.24"]
[WhiteClock "0:00:20"]
[BlackClock "0:00:49"]

1. Nf3 {[%clk 0:02:59]}  Nf6 {[%clk 0:03:00]} 2. g3 {[%clk 0:02:59]}  d5 {[%clk 0:03:00]} 3. Bg2 {[%clk 0:02:59]}  g6 {[%clk 0:03:00]} 4. O-O {[%clk 0:02:59]}  Bg7 {[%clk 0:03:00]} 5. d4 {[%clk 0:02:59]}  O-O {[%clk 0:03:00]} 6. c3 {[%clk 0:02:57]}  c6 {[%clk 0:02:59]} 7. a4 {[%clk 0:02:56]}  a5 {[%clk 0:02:59]} 8. Bf4 {[%clk 0:02:53]}  Bf5 {[%clk 0:02:58]} 9. Nbd2 {[%clk 0:02:53]}  Nbd7 {[%clk 0:02:59]} 10. Ne5 {[%clk 0:02:52]}  Nh5 {[%clk 0:02:56]} 11. Nxd7 {[%clk 0:02:44]}  Qxd7 {[%clk 0:02:56]} 12. Be3 {[%clk 0:02:40]}  Bh3 {[%clk 0:02:55]} 13. Nf3 {[%clk 0:02:35]}  Bxg2 {[%clk 0:02:54]} 14. Kxg2 {[%clk 0:02:35]}  Nf6 {[%clk 0:02:54]} 15. Ne5 {[%clk 0:02:33]}  Qc8 {[%clk 0:02:53]} 16. Bg5 {[%clk 0:02:27]}  Re8 {[%clk 0:02:53]} 17. Qc1 {[%clk 0:02:20]}  Nd7 {[%clk 0:02:52]} 18. Nxd7 {[%clk 0:02:17]}  Qxd7 {[%clk 0:02:52]} 19. Bh6 {[%clk 0:02:18]}  Bh8 {[%clk 0:02:51]} 20. f4 {[%clk 0:02:15]}  Qf5 {[%clk 0:02:48]} 21. Qe3 {[%clk 0:01:55]}  Qh5 {[%clk 0:02:14]} 22. Bg5 {[%clk 0:01:53]}  f6 {[%clk 0:02:10]} 23. Bh4 {[%clk 0:01:53]}  e5 {[%clk 0:02:02]} 24. dxe5 {[%clk 0:01:40]}  fxe5 {[%clk 0:02:02]} 25. Qf3 {[%clk 0:01:29]}  Qxf3+ {[%clk 0:02:00]} 26. Kxf3 {[%clk 0:01:29]}  h6 {[%clk 0:01:54]} 27. e3 {[%clk 0:01:26]}  Re6 {[%clk 0:01:50]} 28. g4 {[%clk 0:01:26]}  exf4 {[%clk 0:01:46]} 29. exf4 {[%clk 0:01:26]}  Rae8 {[%clk 0:01:45]} 30. Rfe1 {[%clk 0:01:22]}  Re4 {[%clk 0:01:45]} 31. Rxe4 {[%clk 0:01:21]}  Rxe4 {[%clk 0:01:45]} 32. Bf2 {[%clk 0:01:20]}  g5 {[%clk 0:01:35]} 33. fxg5 {[%clk 0:01:13]}  hxg5 {[%clk 0:01:34]} 34. Be3 {[%clk 0:01:11]}  Bf6 {[%clk 0:01:34]} 35. h3 {[%clk 0:01:08]}  Kf7 {[%clk 0:01:34]} 36. Bb6 {[%clk 0:01:04]}  Rf4+ {[%clk 0:01:33]} 37. Kg2 {[%clk 0:00:57]}  Re4 {[%clk 0:01:33]} 38. Rf1 {[%clk 0:00:56]}  Ke6 {[%clk 0:01:32]} 39. Bxa5 {[%clk 0:00:46]}  Rxa4 {[%clk 0:01:32]} 40. Re1+ {[%clk 0:00:45]}  Kf7 {[%clk 0:01:30]} 41. Bb4 {[%clk 0:00:40]}  Ra2 {[%clk 0:01:30]} 42. Re2 {[%clk 0:00:38]}  b6 {[%clk 0:01:29]} 43. Kf3 {[%clk 0:00:36]}  c5 {[%clk 0:01:26]} 44. Ba3 {[%clk 0:00:36]}  d4 {[%clk 0:01:23]} 45. cxd4 {[%clk 0:00:35]}  Bxd4 {[%clk 0:01:23]} 46. Ke4 {[%clk 0:00:33]}  b5 {[%clk 0:01:21]} 47. Kd5 {[%clk 0:00:33]}  Bf6 {[%clk 0:00:51]} 48. Rf2 {[%clk 0:00:20]}  b4 {[%clk 0:00:49]} 0-1


[Site "https://www.chess.com"]

[Event "Titled Tuesday Blitz May 24 Early 2022"]
[White "Schut, Han"]
[Black "Pham, Le Thao Nguyen"]
[WhiteFideId "1005561"]
[BlackFideId "12401226"]
[WhiteElo "2057"]
[BlackElo "2271"]
[Result "1/2-1/2"]
[Round "04"]
[TimeControl "180+1"]
[Date "2022.05.25"]
[WhiteClock "0:02:32"]
[BlackClock "0:02:32"]

1. e4 {[%clk 0:02:59]}  c5 {[%clk 0:02:54]} 2. Nf3 {[%clk 0:03:00]}  e6 {[%clk 0:02:54]} 3. c4 {[%clk 0:02:59]}  a6 {[%clk 0:02:53]} 4. Nc3 {[%clk 0:03:00]}  Nc6 {[%clk 0:02:53]} 5. Be2 {[%clk 0:03:00]}  Nd4 {[%clk 0:02:53]} 6. O-O {[%clk 0:03:00]}  d6 {[%clk 0:02:53]} 7. d3 {[%clk 0:03:00]}  g6 {[%clk 0:02:52]} 8. Be3 {[%clk 0:03:00]}  Bg7 {[%clk 0:02:52]} 9. Rb1 {[%clk 0:02:58]}  Ne7 {[%clk 0:02:48]} 10. Qd2 {[%clk 0:02:53]}  O-O {[%clk 0:02:48]} 11. Bh6 {[%clk 0:02:50]}  Nec6 {[%clk 0:02:34]} 12. Bxg7 {[%clk 0:02:49]}  Kxg7 {[%clk 0:02:35]} 13. Nxd4 {[%clk 0:02:44]}  Nxd4 {[%clk 0:02:33]} 14. f4 {[%clk 0:02:45]}  f5 {[%clk 0:02:33]} 15. Bf3 {[%clk 0:02:44]}  Rb8 {[%clk 0:02:32]} 16. Ne2 {[%clk 0:02:32]} 1/2-1/2


[Site "https://www.chess.com"]

[Event "Titled Tuesday Blitz May 24 Early 2022"]
[White "Shipov, Sergei"]
[Black "Kollars, Dmitrij"]
[WhiteFideId "4113624"]
[BlackFideId "12909572"]
[WhiteElo "2808"]
[BlackElo "2584"]
[Result "0-1"]
[Round "04"]
[TimeControl "180+1"]
[Date "2022.05.24"]
[WhiteClock "0:00:04"]
[BlackClock "0:00:10"]

1. d4 {[%clk 0:03:00]}  Nf6 {[%clk 0:02:58]} 2. c4 {[%clk 0:03:00]}  e6 {[%clk 0:02:57]} 3. Nc3 {[%clk 0:03:00]}  d5 {[%clk 0:02:56]} 4. cxd5 {[%clk 0:03:00]}  exd5 {[%clk 0:02:57]} 5. Bg5 {[%clk 0:03:00]}  Be7 {[%clk 0:02:55]} 6. e3 {[%clk 0:03:00]}  c6 {[%clk 0:02:53]} 7. Qc2 {[%clk 0:02:56]}  h6 {[%clk 0:02:52]} 8. Bh4 {[%clk 0:02:53]}  Nh5 {[%clk 0:02:52]} 9. Bxe7 {[%clk 0:02:52]}  Qxe7 {[%clk 0:02:52]} 10. Nxd5 {[%clk 0:02:50]}  Qd6 {[%clk 0:02:39]} 11. Nc3 {[%clk 0:02:46]}  O-O {[%clk 0:02:39]} 12. Be2 {[%clk 0:02:46]}  Nf6 {[%clk 0:02:39]} 13. Nf3 {[%clk 0:02:46]}  c5 {[%clk 0:02:37]} 14. Nb5 {[%clk 0:02:41]}  Qd8 {[%clk 0:02:27]} 15. Qxc5 {[%clk 0:02:40]}  Ne4 {[%clk 0:02:23]} 16. Qc7 {[%clk 0:02:35]}  Qf6 {[%clk 0:02:17]} 17. O-O {[%clk 0:02:34]}  Nc6 {[%clk 0:02:16]} 18. Nc3 {[%clk 0:02:23]}  Nd6 {[%clk 0:02:04]} 19. Nd5 {[%clk 0:02:19]}  Qe6 {[%clk 0:02:04]} 20. Nf4 {[%clk 0:02:19]}  Qf6 {[%clk 0:02:04]} 21. Nh5 {[%clk 0:00:51]}  Qe6 {[%clk 0:01:22]} 22. d5 {[%clk 0:00:50]}  Qxd5 {[%clk 0:01:14]} 23. Nf4 {[%clk 0:00:51]}  Qc5 {[%clk 0:01:14]} 24. Rfc1 {[%clk 0:00:45]}  Ne8 {[%clk 0:01:00]} 25. Rxc5 {[%clk 0:00:37]}  Nxc7 {[%clk 0:01:01]} 26. Rd1 {[%clk 0:00:34]}  Ne6 {[%clk 0:01:01]} 27. Nxe6 {[%clk 0:00:32]}  Bxe6 {[%clk 0:01:01]} 28. a3 {[%clk 0:00:32]}  Rfd8 {[%clk 0:00:59]} 29. Rdc1 {[%clk 0:00:32]}  Rd6 {[%clk 0:00:56]} 30. b4 {[%clk 0:00:31]}  Rad8 {[%clk 0:00:56]} 31. h3 {[%clk 0:00:30]}  Kf8 {[%clk 0:00:55]} 32. b5 {[%clk 0:00:30]}  Na5 {[%clk 0:00:55]} 33. Nd4 {[%clk 0:00:30]}  Rxd4 {[%clk 0:00:53]} 34. exd4 {[%clk 0:00:28]}  Nb3 {[%clk 0:00:54]} 35. Bf3 {[%clk 0:00:24]}  b6 {[%clk 0:00:48]} 36. R5c3 {[%clk 0:00:17]}  Nxc1 {[%clk 0:00:48]} 37. Rxc1 {[%clk 0:00:18]}  Rxd4 {[%clk 0:00:49]} 38. Rc7 {[%clk 0:00:17]}  Ra4 {[%clk 0:00:40]} 39. Rc3 {[%clk 0:00:17]}  Rc4 {[%clk 0:00:40]} 40. Re3 {[%clk 0:00:14]}  Rc5 {[%clk 0:00:36]} 41. Be2 {[%clk 0:00:13]}  Ke7 {[%clk 0:00:35]} 42. f4 {[%clk 0:00:13]}  Kd6 {[%clk 0:00:34]} 43. Kf2 {[%clk 0:00:13]}  Rc2 {[%clk 0:00:33]} 44. Ke1 {[%clk 0:00:13]}  Rb2 {[%clk 0:00:19]} 45. g4 {[%clk 0:00:12]}  Rb3 {[%clk 0:00:15]} 46. Rxb3 {[%clk 0:00:11]}  Bxb3 {[%clk 0:00:16]} 47. Kd2 {[%clk 0:00:11]}  Kc5 {[%clk 0:00:13]} 48. Kc3 {[%clk 0:00:11]}  Ba4 {[%clk 0:00:13]} 49. Bc4 {[%clk 0:00:10]}  f6 {[%clk 0:00:13]} 50. Be6 {[%clk 0:00:09]}  Bxb5 {[%clk 0:00:12]} 51. h4 {[%clk 0:00:10]}  g5 {[%clk 0:00:11]} 52. fxg5 {[%clk 0:00:10]}  fxg5 {[%clk 0:00:11]} 53. hxg5 {[%clk 0:00:10]}  hxg5 {[%clk 0:00:12]} 54. Bf5 {[%clk 0:00:10]}  Bc4 {[%clk 0:00:12]} 55. Bc8 {[%clk 0:00:10]}  b5 {[%clk 0:00:11]} 56. Bf5 {[%clk 0:00:10]}  a5 {[%clk 0:00:11]} 57. Bd7 {[%clk 0:00:09]}  b4+ {[%clk 0:00:09]} 58. axb4+ {[%clk 0:00:10]}  axb4+ {[%clk 0:00:09]} 59. Kd2 {[%clk 0:00:09]}  Kd4 {[%clk 0:00:10]} 60. Kc2 {[%clk 0:00:09]}  Ke4 {[%clk 0:00:10]} 61. Kb2 {[%clk 0:00:08]}  Ke5 {[%clk 0:00:10]} 62. Kc2 {[%clk 0:00:06]}  Be6 {[%clk 0:00:10]} 63. Bc6 {[%clk 0:00:06]}  Kd4 {[%clk 0:00:10]} 64. Bf3 {[%clk 0:00:06]}  Ke3 {[%clk 0:00:10]} 65. Bd1 {[%clk 0:00:06]}  Bd5 {[%clk 0:00:10]} 66. Kb2 {[%clk 0:00:06]}  Kd2 {[%clk 0:00:09]} 67. Ba4 {[%clk 0:00:06]}  Be6 {[%clk 0:00:09]} 68. Bc6 {[%clk 0:00:06]}  Kd3 {[%clk 0:00:09]} 69. Bf3 {[%clk 0:00:05]}  Ke3 {[%clk 0:00:09]} 70. Bd1 {[%clk 0:00:06]}  Kf4 {[%clk 0:00:10]} 71. Bc2 {[%clk 0:00:04]}  Kxg4 {[%clk 0:00:10]} 0-1


[Site "https://www.chess.com"]

[Event "Titled Tuesday Blitz May 24 Early 2022"]
[White "Shton, Roman"]
[Black "Avramidou, Anastasia"]
[WhiteFideId "14137461"]
[BlackFideId "4239873"]
[WhiteElo "2013"]
[BlackElo "2183"]
[Result "0-1"]
[Round "04"]
[TimeControl "180+1"]
[Date "2022.05.25"]
[WhiteClock "0:01:27"]
[BlackClock "0:00:44"]

1. d4 {[%clk 0:03:00]}  g6 {[%clk 0:03:00]} 2. e4 {[%clk 0:03:00]}  Bg7 {[%clk 0:03:01]} 3. Nf3 {[%clk 0:03:00]}  c6 {[%clk 0:03:02]} 4. Bc4 {[%clk 0:03:01]}  d5 {[%clk 0:03:02]} 5. Bd3 {[%clk 0:03:01]}  dxe4 {[%clk 0:03:02]} 6. Bxe4 {[%clk 0:03:02]}  Nf6 {[%clk 0:03:02]} 7. Bd3 {[%clk 0:03:02]}  O-O {[%clk 0:03:03]} 8. h3 {[%clk 0:02:59]}  Nbd7 {[%clk 0:03:03]} 9. O-O {[%clk 0:02:58]}  Qc7 {[%clk 0:03:03]} 10. Re1 {[%clk 0:02:57]}  Re8 {[%clk 0:03:03]} 11. Bc4 {[%clk 0:02:44]}  e6 {[%clk 0:03:02]} 12. c3 {[%clk 0:02:41]}  b6 {[%clk 0:03:02]} 13. Bg5 {[%clk 0:02:30]}  Bb7 {[%clk 0:03:02]} 14. Nbd2 {[%clk 0:02:28]}  c5 {[%clk 0:03:02]} 15. Bh4 {[%clk 0:02:22]}  Rad8 {[%clk 0:03:02]} 16. Bg3 {[%clk 0:02:16]}  Qc8 {[%clk 0:03:01]} 17. Qa4 {[%clk 0:02:12]}  Qa8 {[%clk 0:02:58]} 18. Bf1 {[%clk 0:02:03]}  cxd4 {[%clk 0:02:53]} 19. Nxd4 {[%clk 0:02:02]}  Nc5 {[%clk 0:02:52]} 20. Qc2 {[%clk 0:02:02]}  Nfe4 {[%clk 0:02:49]} 21. Nxe4 {[%clk 0:01:58]}  Nxe4 {[%clk 0:02:48]} 22. Nb5 {[%clk 0:01:50]}  Nxg3 {[%clk 0:01:34]} 23. Nc7 {[%clk 0:01:49]}  Qb8 {[%clk 0:01:23]} 24. Nxe8 {[%clk 0:01:49]}  Nxf1 {[%clk 0:01:24]} 25. Nxg7 {[%clk 0:01:48]}  Qh2+ {[%clk 0:01:20]} 26. Kxf1 {[%clk 0:01:47]}  Qxg2+ {[%clk 0:01:19]} 27. Ke2 {[%clk 0:01:47]}  Qf3+ {[%clk 0:01:01]} 28. Kf1 {[%clk 0:01:47]}  Qxh3+ {[%clk 0:00:56]} 29. Ke2 {[%clk 0:01:46]}  Bf3+ {[%clk 0:00:53]} 30. Ke3 {[%clk 0:01:33]}  Bd1+ {[%clk 0:00:51]} 31. Kf4 {[%clk 0:01:30]}  Qg4+ {[%clk 0:00:44]} 32. Ke3 {[%clk 0:01:27]}  Qf3# {[%clk 0:00:44]} 0-1


[Site "https://www.chess.com"]

[Event "Titled Tuesday Blitz May 24 Early 2022"]
[White "Sismeiro, Miguel"]
[Black "Mikhalsky, Vladimir"]
[WhiteFideId "1950975"]
[BlackFideId "14144352"]
[WhiteElo "2031"]
[BlackElo "2301"]
[Result "1-0"]
[Round "04"]
[TimeControl "180+1"]
[Date "2022.05.25"]
[WhiteClock "0:00:08"]
[BlackClock "0:00:04"]

1. Nc3 {[%clk 0:02:56]}  c5 {[%clk 0:02:56]} 2. g3 {[%clk 0:02:53]}  Nc6 {[%clk 0:02:53]} 3. Bg2 {[%clk 0:02:53]}  g6 {[%clk 0:02:51]} 4. Nf3 {[%clk 0:02:49]}  Bg7 {[%clk 0:02:50]} 5. O-O {[%clk 0:02:50]}  e5 {[%clk 0:02:50]} 6. e4 {[%clk 0:02:49]}  Nge7 {[%clk 0:02:50]} 7. d3 {[%clk 0:02:48]}  d6 {[%clk 0:02:50]} 8. Nd2 {[%clk 0:02:47]}  O-O {[%clk 0:02:49]} 9. Nc4 {[%clk 0:02:47]}  a6 {[%clk 0:02:46]} 10. a4 {[%clk 0:02:47]}  Nd4 {[%clk 0:02:41]} 11. a5 {[%clk 0:02:42]}  Be6 {[%clk 0:02:39]} 12. Nb6 {[%clk 0:02:39]}  Rb8 {[%clk 0:02:35]} 13. f4 {[%clk 0:02:27]}  f5 {[%clk 0:02:31]} 14. Be3 {[%clk 0:02:16]}  Kh8 {[%clk 0:02:20]} 15. fxe5 {[%clk 0:02:11]}  dxe5 {[%clk 0:02:19]} 16. Kh1 {[%clk 0:02:06]}  Nc8 {[%clk 0:02:09]} 17. Ncd5 {[%clk 0:01:58]}  Nd6 {[%clk 0:02:03]} 18. c3 {[%clk 0:01:54]}  f4 {[%clk 0:01:41]} 19. gxf4 {[%clk 0:01:37]}  exf4 {[%clk 0:01:41]} 20. Rxf4 {[%clk 0:01:27]}  Rxf4 {[%clk 0:01:28]} 21. Bxf4 {[%clk 0:01:28]}  Nc6 {[%clk 0:01:24]} 22. Qe1 {[%clk 0:01:12]}  Ne5 {[%clk 0:01:22]} 23. Qg3 {[%clk 0:01:11]}  Ndf7 {[%clk 0:01:17]} 24. d4 {[%clk 0:01:08]}  cxd4 {[%clk 0:01:15]} 25. cxd4 {[%clk 0:01:08]}  g5 {[%clk 0:01:15]} 26. Bxe5 {[%clk 0:01:07]}  Nxe5 {[%clk 0:01:14]} 27. dxe5 {[%clk 0:01:08]}  Bg8 {[%clk 0:00:45]} 28. Rf1 {[%clk 0:00:57]}  Qe8 {[%clk 0:00:44]} 29. Nf6 {[%clk 0:00:55]}  Qb5 {[%clk 0:00:42]} 30. Qxg5 {[%clk 0:00:36]}  Qxa5 {[%clk 0:00:36]} 31. Nbd5 {[%clk 0:00:33]}  Qb5 {[%clk 0:00:24]} 32. Nh5 {[%clk 0:00:26]}  Qd7 {[%clk 0:00:15]} 33. Ndf6 {[%clk 0:00:22]}  Qc7 {[%clk 0:00:13]} 34. Qxg7+ {[%clk 0:00:15]}  Qxg7 {[%clk 0:00:13]} 35. Nxg7 {[%clk 0:00:16]}  Kxg7 {[%clk 0:00:13]} 36. Rd1 {[%clk 0:00:15]}  Kg6 {[%clk 0:00:11]} 37. Rd7 {[%clk 0:00:15]}  Be6 {[%clk 0:00:10]} 38. Rc7 {[%clk 0:00:14]}  b5 {[%clk 0:00:09]} 39. Kg1 {[%clk 0:00:14]}  Rd8 {[%clk 0:00:08]} 40. Rc2 {[%clk 0:00:12]}  Bb3 {[%clk 0:00:07]} 41. Rc6 {[%clk 0:00:12]}  Rd1+ {[%clk 0:00:06]} 42. Kf2 {[%clk 0:00:12]}  Rd2+ {[%clk 0:00:06]} 43. Kg3 {[%clk 0:00:13]}  Rxb2 {[%clk 0:00:06]} 44. Ng4+ {[%clk 0:00:11]}  Kg7 {[%clk 0:00:06]} 45. Rc7+ {[%clk 0:00:10]}  Kg6 {[%clk 0:00:06]} 46. Ne3 {[%clk 0:00:08]}  Ba2 {[%clk 0:00:04]} 47. Bh3 {[%clk 0:00:08]}  Rb3 {[%clk 0:00:04]} 48. Bf5+ {[%clk 0:00:08]} 1-0


[Site "https://www.chess.com"]

[Event "Titled Tuesday Blitz May 24 Early 2022"]
[White "Sjugirov, Sanan"]
[Black "Srihari L R"]
[WhiteFideId "4189302"]
[BlackFideId "46617116"]
[WhiteElo "2602"]
[BlackElo "2121"]
[Result "1-0"]
[Round "04"]
[TimeControl "180+1"]
[Date "2022.05.24"]
[WhiteClock "0:00:03"]
[BlackClock "0:00:03"]

1. e4 {[%clk 0:02:38]}  c6 {[%clk 0:02:57]} 2. d4 {[%clk 0:02:36]}  d5 {[%clk 0:02:57]} 3. e5 {[%clk 0:02:37]}  Bf5 {[%clk 0:02:56]} 4. Nf3 {[%clk 0:02:37]}  e6 {[%clk 0:02:55]} 5. Be2 {[%clk 0:02:38]}  c5 {[%clk 0:02:54]} 6. O-O {[%clk 0:02:38]}  Nc6 {[%clk 0:02:53]} 7. c3 {[%clk 0:02:38]}  cxd4 {[%clk 0:02:51]} 8. Nxd4 {[%clk 0:02:37]}  Nxd4 {[%clk 0:02:49]} 9. cxd4 {[%clk 0:02:38]}  Ne7 {[%clk 0:02:50]} 10. Nc3 {[%clk 0:02:37]}  Nc6 {[%clk 0:02:50]} 11. g4 {[%clk 0:02:37]}  Bg6 {[%clk 0:02:49]} 12. f4 {[%clk 0:02:36]}  Qd7 {[%clk 0:02:24]} 13. Be3 {[%clk 0:02:31]}  h5 {[%clk 0:02:21]} 14. f5 {[%clk 0:02:25]}  exf5 {[%clk 0:02:21]} 15. gxh5 {[%clk 0:02:22]}  Bh7 {[%clk 0:02:21]} 16. Bf3 {[%clk 0:02:17]}  Ne7 {[%clk 0:02:18]} 17. Rc1 {[%clk 0:02:06]}  g6 {[%clk 0:02:15]} 18. Qb3 {[%clk 0:02:02]}  gxh5 {[%clk 0:01:58]} 19. Nxd5 {[%clk 0:01:57]}  Nxd5 {[%clk 0:01:57]} 20. Bxd5 {[%clk 0:01:58]}  Rg8+ {[%clk 0:01:55]} 21. Kh1 {[%clk 0:01:46]}  Rd8 {[%clk 0:01:53]} 22. Bxb7 {[%clk 0:01:41]}  f4 {[%clk 0:01:51]} 23. Rxf4 {[%clk 0:01:31]}  Bh6 {[%clk 0:01:39]} 24. e6 {[%clk 0:00:45]}  Qxe6 {[%clk 0:01:16]} 25. Qxe6+ {[%clk 0:00:38]}  fxe6 {[%clk 0:01:14]} 26. Rf6 {[%clk 0:00:31]}  Bxe3 {[%clk 0:01:12]} 27. Rxe6+ {[%clk 0:00:25]}  Kf7 {[%clk 0:01:11]} 28. Rxe3 {[%clk 0:00:26]}  Rxd4 {[%clk 0:01:10]} 29. Rc7+ {[%clk 0:00:23]}  Kf6 {[%clk 0:01:06]} 30. Rf3+ {[%clk 0:00:14]}  Ke6 {[%clk 0:01:03]} 31. Rf1 {[%clk 0:00:12]}  Bd3 {[%clk 0:00:58]} 32. Re1+ {[%clk 0:00:12]}  Kd6 {[%clk 0:00:58]} 33. Rc6+ {[%clk 0:00:12]}  Kd7 {[%clk 0:00:55]} 34. Rh6 {[%clk 0:00:13]}  Kc7 {[%clk 0:00:45]} 35. Bf3 {[%clk 0:00:11]}  Rf4 {[%clk 0:00:43]} 36. Bd5 {[%clk 0:00:07]}  Rg5 {[%clk 0:00:39]} 37. Bg2 {[%clk 0:00:06]}  Rf2 {[%clk 0:00:37]} 38. Ba8 {[%clk 0:00:02]}  Rf8 {[%clk 0:00:30]} 39. Rc1+ {[%clk 0:00:02]}  Kb8 {[%clk 0:00:28]} 40. Bg2 {[%clk 0:00:02]}  a6 {[%clk 0:00:23]} 41. a4 {[%clk 0:00:02]}  Rf2 {[%clk 0:00:20]} 42. Rh8+ {[%clk 0:00:02]}  Ka7 {[%clk 0:00:20]} 43. a5 {[%clk 0:00:03]}  Rc2 {[%clk 0:00:07]} 44. Rxc2 {[%clk 0:00:03]}  Rxa5 {[%clk 0:00:05]} 45. Ra8+ {[%clk 0:00:02]}  Kb6 {[%clk 0:00:05]} 46. Rc1 {[%clk 0:00:03]}  Rg5 {[%clk 0:00:04]} 47. Rb8+ {[%clk 0:00:03]}  Ka5 {[%clk 0:00:03]} 48. Ra1# {[%clk 0:00:03]} 1-0


[Site "https://www.chess.com"]